bitfinex/quotes_ETHUSD_20240715
["timestamp","ask_amount","ask_price","bid_price","bid_amount"]
[1721068629870,0.1019922,3401.2,3400.6,2.94058]
[1721068631812,0.1019922,3401.2,3399.8,2.2894]
[1721068632014,0.61509275,3400.7,3399.9,2.94125]
[1721068632232,0.61509275,3400.5,3399.7,2.94138]
[1721068632510,1.40122565,3400.4,3400.0,2.9411]
[1721068632680,0.61509275,3400.4,3400.1,2.94104]
[1721068632898,0.61509275,3400.6,3400.5,2.94074]
[1721068633100,0.61521136,3401.0,3400.7,2.94057]
[1721068633315,0.6584458,3401.2,3400.7,2.94057]
[1721068633483,0.04317386,3400.9,3400.7,2.94057]
[1721068633693,1.13943992,3401.2,3400.7,2.94057]
[1721068634004,0.61521136,3400.9,3400.4,2.94079]
[1721068634343,0.72697576,3401.1,3400.6,2.94061]
[1721068634344,0.65848601,3401.1,3400.6,2.94061]
[1721068634631,0.61521136,3400.9,3400.3,5.88168]
[1721068634832,1.3422384,3400.8,3400.3,5.88168]
[1721068635043,1.3422384,3400.8,3399.8,2.94128]
[1721068635044,0.78331382,3400.7,3399.8,2.94128]
[1721068635186,0.78331382,3400.7,3399.7,2.94142]
[1721068635187,0.61521136,3400.4,3399.7,2.94142]
[1721068635433,0.61521136,3400.4,3399.1,2.94194]
[1721068635434,0.65795526,3400.3,3399.8,2.94134]
[1721068635758,0.65795526,3400.3,3399.6,2.94145]
[1721068635759,0.05875776,3400.2,3399.6,2.94145]
[1721068635965,0.05875776,3400.2,3399.7,2.94142]
[1721068636264,0.92281705,3400.5,3400.0,2.94117]
[1721068636265,0.0426961,3400.1,3400.0,2.94117]
[1721068636558,0.6151692,3400.3,3399.6,2.94152]
[1721068636873,1.43706345,3400.2,3399.6,2.94152]
[1721068637020,0.71667315,3400.2,3399.6,2.94152]
[1721068637221,0.04274619,3400.2,3400.0,2.94116]
[1721068637453,0.6151692,3400.6,3399.9,2.94119]
[1721068637634,0.04106286,3400.1,3399.9,2.94119]
[1721068637959,1.39579327,3400.5,3399.9,2.94119]
[1721068637960,0.6151692,3400.4,3399.9,2.94119]
[1721068638158,0.6151692,3400.6,3399.9,2.94119]
[1721068638365,0.04118989,3400.3,3399.4,2.94163]
[1721068638568,1.23033841,3401.0,3399.4,2.94163]
[1721068638569,0.6151692,3401.1,3400.6,2.94065]
[1721068638862,0.05875776,3401.1,3400.6,2.94065]
[1721068639175,0.05875776,3401.1,3400.0,2.94115]
[1721068639176,0.6151692,3400.9,3400.0,2.94115]
[1721068639361,0.6151692,3400.9,3400.4,2.94077]
[1721068639565,0.6151692,3401.1,3400.7,2.94056]
[1721068639748,0.1537923,3401.0,3400.4,2.94077]
[1721068640062,0.78527259,3400.9,3400.0,5.88227]
[1721068640262,0.78527259,3400.9,3399.9,2.94122]
[1721068640263,1.3390162,3400.8,3399.9,2.94122]
[1721068640504,1.39777396,3400.7,3399.9,2.94122]
[1721068640720,0.7152072,3400.7,3400.2,2.94099]
[1721068640997,0.100038,3400.7,3400.2,2.94099]
[1721068641572,0.100038,3400.7,3400.3,2.94087]
[1721068641573,0.04128024,3400.7,3400.3,2.94087]
[1721068641901,0.6151692,3401.3,3400.8,2.94046]
[1721068642122,0.6151692,3401.4,3400.9,2.94039]
[1721068642260,0.6151692,3401.6,3401.0,2.94029]
[1721068642465,0.6151692,3401.5,3401.0,2.94029]
[1721068642666,0.6151692,3401.6,3401.0,2.94029]
[1721068643215,0.6151692,3401.6,3401.1,2.94021]
[1721068643216,0.61463426,3401.6,3401.1,2.94021]
[1721068643368,0.61463426,3401.5,3401.1,2.94021]
[1721068643766,0.61463426,3401.6,3401.1,2.94021]
[1721068643995,0.61463426,3401.7,3401.1,2.94021]
[1721068644196,0.61463426,3401.6,3401.1,2.94021]
[1721068644380,0.89121968,3401.7,3401.1,2.94021]
[1721068644578,0.61463426,3401.7,3401.1,2.94021]
[1721068644780,0.9219514,3401.9,3401.5,2.93981]
[1721068644781,0.61463426,3401.9,3401.5,2.93981]
[1721068644992,0.61463426,3401.9,3401.6,2.93979]
[1721068645279,2.93901,3402.5,3400.7,2.94052]
[1721068645280,0.61463426,3402.3,3402.0,2.93938]
[1721068645491,0.61463426,3402.5,3402.0,2.93938]
[1721068645691,0.61458836,3402.6,3402.1,2.93934]
[1721068645891,0.61458836,3402.5,3402.1,2.93934]
[1721068646064,0.67334612,3402.5,3401.9,2.93952]
[1721068646270,0.67334612,3402.5,3402.0,2.93944]
[1721068646732,0.89115312,3402.6,3402.2,2.93921]
[1721068646907,0.89115312,3402.6,3402.0,2.93938]
[1721068646908,0.61458836,3402.5,3402.0,2.93938]
[1721068647111,0.61458836,3402.3,3401.9,2.93953]
[1721068647339,0.18717934,3402.4,3400.6,2.9406]
[1721068647340,6.02856612,3402.2,3400.6,2.9406]
[1721068647470,0.61459047,3402.1,3401.4,2.9399]
[1721068647670,0.61459047,3402.1,3400.7,2.94056]
[1721068647911,0.18717934,3402.4,3402.1,2.9393]
[1721068647912,0.61459047,3402.4,3402.1,2.9393]
[1721068648126,0.42876955,3402.4,3402.1,2.93928]
[1721068648283,0.94991299,3402.6,3402.1,2.93928]
[1721068648490,0.61459047,3402.9,3402.5,2.93893]
[1721068648722,0.61459047,3403.1,3402.6,2.93891]
[1721068648892,0.61427387,3403.1,3402.4,2.93903]
[1721068649076,0.61427387,3403.1,3402.5,2.93901]
[1721068649496,0.67303163,3403.0,3402.3,2.93915]
[1721068649722,1.06756811,3402.9,3402.3,2.93915]
[1721068649920,1.06756811,3402.9,3402.6,2.93892]
[1721068650213,0.67303163,3403.3,3402.9,2.93866]
[1721068650373,0.61427387,3403.5,3403.0,2.93849]
[1721068650607,3.03017387,3403.7,3403.0,2.93849]
[1721068650849,0.61427387,3403.4,3402.5,2.93895]
[1721068651063,0.67303163,3403.3,3402.5,2.93895]
[1721068651350,0.512027,3403.2,3402.3,2.93912]
[1721068651644,0.512027,3403.2,3401.7,5.4352]
[1721068651645,0.512027,3403.2,3402.4,2.93909]
[1721068651945,0.05875776,3403.2,3402.7,2.93884]
[1721068652458,0.05875776,3403.3,3402.9,2.93866]
[1721068652756,0.92052439,3403.6,3402.9,2.93866]
[1721068652757,0.61368293,3403.6,3403.1,2.93847]
[1721068653405,0.61368293,3403.6,3402.9,2.93866]
[1721068653406,0.61368293,3403.5,3402.9,2.93866]
[1721068653604,0.05875776,3403.4,3402.4,2.93903]
[1721068653806,0.77297944,3403.3,3402.5,2.93895]
[1721068654070,0.67244069,3403.2,3402.5,2.93895]
[1721068654351,0.05875776,3403.2,3402.5,2.93895]
[1721068654705,0.05875776,3403.2,3401.3,2.94002]
[1721068654706,2.93899,3402.6,3401.3,2.94002]
[1721068655006,2.9392,3402.3,3401.5,2.93987]
[1721068655321,0.41992183,3402.2,3401.5,2.93987]
[1721068655645,0.41992183,3402.2,3401.3,2.94002]
[1721068655950,0.61343487,3402.1,3401.5,2.93987]
[1721068656150,0.05875776,3402.0,3401.5,2.93987]
[1721068656518,0.05875776,3402.0,3401.3,5.88]
[1721068656723,0.05875776,3402.0,3401.4,2.93993]
[1721068656724,0.39466894,3402.0,3401.4,2.93993]
[1721068656910,0.39466894,3402.0,3401.5,2.93986]
[1721068657107,0.39466894,3402.0,3401.6,2.93977]
[1721068657316,1.53358719,3402.8,3402.0,2.93943]
[1721068657317,0.61343487,3402.6,3402.0,2.93943]
[1721068657516,0.92015231,3402.8,3400.9,2.94036]
[1721068657517,0.05875776,3402.7,3400.9,2.94036]
[1721068657732,0.05875776,3402.7,3402.2,2.93926]
[1721068657923,0.05875776,3402.7,3402.1,2.9393]
[1721068658350,0.67219263,3402.7,3402.1,2.9393]
[1721068658516,0.45310349,3402.6,3402.2,2.93925]
[1721068659261,0.05875776,3402.5,3401.8,2.93954]
[1721068659608,0.05875776,3402.5,3401.1,2.94022]
[1721068659609,2.99778776,3402.5,3401.1,2.94022]
[1721068659808,2.99778776,3402.5,3400.2,3.388]
[1721068659809,5.4273,3402.4,3400.2,3.388]
[1721068660050,5.4273,3402.4,3401.0,2.94025]
[1721068660051,3.55296487,3401.9,3401.0,2.94025]
[1721068660259,0.44731172,3401.8,3401.0,2.94025]
[1721068660431,0.05767913,3401.7,3401.1,2.94014]
[1721068660642,0.05767913,3401.7,3401.2,2.94012]
[1721068660850,0.05767913,3401.7,3401.0,5.88049]
[1721068661046,2.93979,3401.6,3400.6,2.94065]
[1721068661243,2.93979,3401.6,3400.7,2.94056]
[1721068661244,0.35634741,3401.5,3400.7,2.94056]
[1721068661434,0.55,3401.4,3400.8,2.94047]
[1721068661646,0.55,3401.4,3400.9,2.94037]
[1721068662134,0.55,3401.7,3400.9,2.94037]
[1721068662972,0.05767913,3401.6,3400.9,2.94037]
[1721068663285,0.55,3401.5,3400.9,2.94037]
[1721068663464,3.61343487,3401.9,3401.1,2.94016]
[1721068663785,0.05767913,3401.9,3401.3,2.93999]
[1721068663937,0.05767913,3401.9,3400.9,2.94037]
[1721068663938,2.93964,3401.8,3400.9,2.94037]
[1721068664138,2.93964,3401.8,3401.0,2.9403]
[1721068664139,0.35741104,3401.7,3401.0,2.9403]
[1721068664684,0.35741104,3401.7,3400.7,2.94051]
[1721068664685,3.29711104,3401.7,3400.7,2.94051]
[1721068664974,2.3601,3401.5,3400.3,2.94085]
[1721068665150,2.94005,3401.3,3400.5,2.94072]
[1721068665351,2.94026,3401.1,3399.6,2.94143]
[1721068665582,2.94026,3401.1,3399.7,2.94142]
[1721068665583,2.94067,3400.6,3399.7,2.94142]
[1721068665794,5.49478913,3400.5,3399.6,2.94143]
[1721068665962,0.55,3400.4,3399.6,2.94143]
[1721068666300,0.05767913,3400.3,3399.6,2.94143]
[1721068666616,0.05767913,3400.3,3399.1,2.94192]
[1721068666617,0.05767913,3400.2,3399.1,2.94192]
[1721068666774,0.05767913,3400.2,3399.3,2.94176]
[1721068666775,0.35486491,3400.1,3399.3,2.94176]
[1721068666957,3.61357487,3400.4,3399.7,2.94137]
[1721068667296,3.61357487,3400.4,3398.8,2.94216]
[1721068667297,3.0,3400.4,3399.8,2.94132]
[1721068667456,5.4963,3400.5,3399.9,2.94124]
[1721068667654,0.60767913,3400.4,3399.9,2.94124]
[1721068667956,0.55,3400.4,3399.9,2.94124]
[1721068668600,0.61347093,3400.9,3400.0,2.94109]
[1721068668601,2.94045,3400.9,3400.0,2.94109]
[1721068668755,3.93910061,3400.8,3399.8,5.88257]
[1721068668949,5.94058,3400.7,3399.9,2.94124]
[1721068669155,0.60767913,3400.6,3400.0,2.94116]
[1721068669771,0.60767913,3400.6,3399.8,2.94128]
[1721068670095,0.55,3400.6,3399.8,2.94128]
[1721068670279,0.55,3400.6,3400.1,2.94107]
[1721068670508,0.55,3400.6,3400.0,2.9411]
[1721068670711,0.74581128,3400.6,3399.9,2.94125]
[1721068671279,0.74581128,3400.6,3400.0,2.94115]
[1721068671280,0.68813215,3400.6,3400.0,2.94115]
[1721068671889,0.68813215,3400.6,3400.1,2.94106]
[1721068672096,3.0,3400.9,3399.4,2.94166]
[1721068672097,0.61313852,3401.4,3400.5,2.94073]
[1721068672328,3.85961779,3401.5,3400.5,2.94073]
[1721068672329,2.93991,3401.5,3400.5,2.94073]
[1721068672614,2.94007,3401.3,3400.5,2.94073]
[1721068672816,2.94,3401.4,3400.5,2.94073]
[1721068672966,2.94012,3401.3,3400.5,2.94073]
[1721068673169,0.588003,3401.2,3400.5,2.94073]
[1721068673366,0.55,3401.1,3400.5,2.94073]
[1721068674216,0.55,3401.1,3400.3,2.9409]
[1721068674425,0.05767913,3401.0,3399.9,2.94119]
[1721068674701,0.60767913,3400.9,3399.2,2.94178]
[1721068674905,1.03614734,3400.9,3400.3,2.94084]
[1721068675062,3.55,3400.9,3400.4,2.94081]
[1721068675420,2.93198961,3401.6,3400.8,2.94048]
[1721068675594,2.93198961,3401.6,3400.7,2.94049]
[1721068675595,2.3186,3401.6,3400.9,2.94039]
[1721068676080,0.05767913,3401.5,3400.5,2.9407]
[1721068676267,1.92698851,3401.4,3400.3,2.9409]
[1721068676467,2.94023,3401.1,3400.2,2.94099]
[1721068676700,2.94023,3401.1,3400.3,2.94085]
[1721068676701,0.05767913,3401.0,3400.3,2.94085]
[1721068677069,0.05767913,3401.0,3400.3,2.94083]
[1721068677468,0.05767913,3401.0,3400.4,2.94082]
[1721068677696,3.55349961,3401.3,3399.8,2.94131]
[1721068677697,3.0,3401.3,3400.6,2.94063]
[1721068677908,0.49269885,3401.2,3400.6,2.94063]
[1721068678107,1.3135989,3401.4,3399.5,2.3944]
[1721068678108,2.94032,3401.0,3400.2,2.94093]
[1721068678403,0.05767913,3400.9,3400.4,2.94082]
[1721068678597,0.55,3400.9,3400.5,2.94074]
[1721068678775,2.94013,3401.2,3400.5,2.94074]
[1721068678980,0.60767913,3401.1,3400.5,2.94074]
[1721068679178,4.38938389,3401.1,3400.2,2.94093]
[1721068679408,4.38938389,3401.1,3400.4,2.94082]
[1721068679907,4.38938389,3401.1,3400.2,2.94099]
[1721068679908,2.94032,3401.0,3400.2,2.94099]
[1721068680069,0.05767913,3400.9,3400.2,2.94099]
[1721068680270,0.55,3400.8,3400.0,2.94117]
[1721068680470,0.35480891,3400.7,3400.1,2.94107]
[1721068680696,0.55,3401.0,3400.3,2.94091]
[1721068680905,0.55,3401.0,3400.2,2.94093]
[1721068681106,0.05767913,3400.9,3400.4,2.94083]
[1721068681305,0.05767913,3400.9,3400.0,2.94115]
[1721068681466,3.49051,3400.8,3400.0,5.88226]
[1721068681672,0.05767913,3400.7,3400.0,2.94111]
[1721068681873,0.55,3400.6,3400.0,2.94111]
[1721068682072,0.05767913,3400.5,3399.6,2.94148]
[1721068682297,0.05767913,3400.5,3399.6,2.94152]
[1721068682298,2.94085,3400.4,3399.6,2.94152]
[1721068682496,0.05767913,3400.3,3399.7,2.94143]
[1721068682699,0.55,3400.2,3399.7,2.94143]
[1721068683203,0.60767913,3400.2,3399.7,2.94143]
[1721068684002,0.60767913,3400.2,3399.5,5.88313]
[1721068684191,0.60767913,3400.2,3399.5,5.88307]
[1721068684712,0.55,3400.2,3399.6,2.94148]
[1721068685010,1.09433692,3400.8,3400.1,2.94107]
[1721068685222,0.55,3400.7,3400.1,2.94107]
[1721068685390,3.08593531,3401.2,3400.4,2.94081]
[1721068685610,0.61333531,3401.5,3400.8,2.94046]
[1721068685789,0.88976703,3401.4,3400.8,2.94046]
[1721068686435,8.54093579,3401.7,3401.0,2.94031]
[1721068686598,0.61333531,3402.1,3401.2,2.9401]
[1721068686804,2.93928,3402.2,3401.3,2.94005]
[1721068687018,2.93928,3402.2,3401.2,2.9401]
[1721068687019,5.96750531,3402.3,3401.4,2.93996]
[1721068687198,2.4149,3402.3,3401.4,2.93996]
[1721068687406,2.4149,3402.3,3401.7,2.93969]
[1721068687693,0.30282353,3402.3,3401.7,2.93969]
[1721068688111,0.05767913,3402.2,3401.7,2.93969]
[1721068688783,0.46111974,3402.7,3402.0,2.93943]
[1721068689011,0.61333531,3402.9,3402.1,2.93935]
[1721068689212,0.61333531,3403.1,3402.1,2.93935]
[1721068689528,3.94110141,3403.0,3402.3,2.93918]
[1721068689733,2.9391,3402.4,3401.4,2.93996]
[1721068689936,0.05767913,3402.3,3401.6,2.93977]
[1721068690494,0.55,3402.2,3401.6,2.93977]
[1721068690731,0.05767913,3402.1,3401.6,2.93977]
[1721068690907,0.65169604,3402.1,3401.4,2.9399]
[1721068691093,0.65169604,3402.1,3401.5,2.93987]
[1721068691294,0.65169604,3402.1,3401.6,2.93977]
[1721068691726,0.59401691,3402.1,3401.7,2.93962]
[1721068692030,0.05767913,3402.2,3401.7,2.93962]
[1721068692230,0.61333531,3402.7,3400.9,2.94033]
[1721068692231,0.61333531,3402.7,3402.0,2.93943]
[1721068692531,5.62890618,3403.0,3402.3,2.93916]
[1721068692532,1.00252141,3403.0,3402.3,2.93916]
[1721068693348,1.00252141,3403.0,3401.6,2.93975]
[1721068693349,3.16723579,3403.3,3402.6,2.93892]
[1721068693487,3.8892472,3403.5,3402.6,2.93892]
[1721068693488,2.97,3403.5,3402.9,2.93866]
[1721068693692,2.97,3403.5,3403.0,2.93855]
[1721068694525,3.05593146,3404.0,3401.9,2.9395]
[1721068694526,2.4431,3404.0,3402.0,2.4629]
[1721068694696,2.4431,3404.0,3403.3,2.93831]
[1721068694897,0.30559315,3403.9,3403.3,2.93831]
[1721068696604,0.30559315,3403.9,3403.0,2.93851]
[1721068696605,0.05767913,3403.8,3403.0,2.93851]
[1721068696804,0.05767913,3403.8,3402.0,5.4629]
[1721068696805,2.93803,3403.7,3402.8,2.93875]
[1721068697005,2.99573913,3403.6,3402.7,2.93882]
[1721068697312,2.93818,3403.5,3402.7,2.93882]
[1721068697544,0.71235419,3403.4,3402.7,2.93882]
[1721068697725,0.55,3403.3,3402.7,2.93882]
[1721068697925,0.05767913,3403.2,3402.4,2.93908]
[1721068698109,0.08789543,3403.2,3402.4,2.93908]
[1721068698628,0.08789543,3403.2,3402.2,2.93927]
[1721068698629,2.8769,3403.1,3402.2,2.93927]
[1721068698935,2.8769,3403.1,3402.3,2.93918]
[1721068698936,0.73366824,3403.0,3402.3,2.93918]
[1721068699125,0.73366824,3403.0,3402.1,2.93933]
[1721068699126,3.67225824,3403.0,3402.1,2.93933]
[1721068699342,0.55,3402.9,3402.2,2.93925]
[1721068699544,0.55,3402.9,3402.3,2.93917]
[1721068699545,0.05767913,3402.8,3402.3,2.93917]
[1721068699760,0.08824869,3402.8,3402.3,2.93917]
[1721068699915,0.03056956,3402.8,3402.6,2.93886]
[1721068700123,0.03056956,3402.8,3402.4,2.93903]
[1721068700334,0.05767913,3403.2,3402.4,2.93903]
[1721068700534,0.03051955,3402.7,3402.4,2.93903]
[1721068700920,0.05767913,3403.0,3402.4,2.93903]
[1721068701127,0.03046954,3402.6,3402.5,2.93901]
[1721068701330,1.50889842,3403.1,3402.6,2.93886]
[1721068701511,0.65467506,3403.4,3403.0,2.93855]
[1721068701709,0.05767913,3403.7,3403.0,2.93855]
[1721068702051,0.05767913,3403.7,3403.2,2.93832]
[1721068702251,0.05767913,3403.7,3403.0,2.93855]
[1721068702554,0.05767913,3403.7,3403.1,2.93848]
[1721068703145,0.05767913,3403.7,3402.5,2.93893]
[1721068703343,2.93815,3403.5,3402.7,2.93877]
[1721068703647,0.93559636,3403.6,3403.1,2.93849]
[1721068703844,0.93559636,3403.6,3402.5,2.93896]
[1721068704157,3.48815,3403.5,3402.7,2.93883]
[1721068704357,0.05767913,3403.4,3402.9,2.9386]
[1721068704944,0.05767913,3403.4,3402.7,2.93878]
[1721068705187,0.44236764,3403.3,3402.7,2.93878]
[1721068705401,0.47219142,3403.3,3402.7,2.93878]
[1721068705576,0.60767913,3403.2,3402.5,2.93898]
[1721068705781,0.55,3403.2,3402.5,2.93898]
[1721068706082,0.0297238,3403.1,3402.6,2.9389]
[1721068706683,0.08740293,3403.1,3402.6,2.9389]
[1721068706990,0.44496722,3403.1,3402.4,2.93904]
[1721068707350,0.08740293,3403.1,3402.6,2.93887]
[1721068707971,0.0297238,3403.1,3402.6,2.93887]
[1721068708487,0.08740293,3403.1,3402.6,2.93887]
[1721068708845,0.08740293,3403.1,3402.4,2.93904]
[1721068709462,0.08740293,3403.1,3402.6,2.93887]
[1721068709780,0.0297238,3403.1,3402.7,2.93883]
[1721068709985,0.0297238,3403.1,3403.0,2.93858]
[1721068710355,4.0107494,3404.3,3403.3,2.93824]
[1721068710356,3.0,3404.0,3403.3,2.93824]
[1721068710655,3.0,3404.0,3403.1,2.93845]
[1721068710656,0.38671198,3403.9,3403.2,2.93839]
[1721068710856,0.38671198,3403.9,3403.3,2.93831]
[1721068711071,0.38671198,3403.9,3403.1,2.93845]
[1721068711482,0.38671198,3403.9,3403.3,2.93831]
[1721068711684,0.38671198,3403.9,3403.1,2.93845]
[1721068711842,0.3324482,3403.8,3403.1,2.93845]
[1721068712043,0.02901473,3403.7,3403.1,2.93845]
[1721068712685,0.08669386,3403.7,3402.0,2.2908]
[1721068712881,0.08669386,3403.7,3403.0,2.93854]
[1721068712882,0.55,3403.6,3403.0,2.93854]
[1721068713067,0.41963736,3403.5,3403.1,2.93846]
[1721068713259,0.02892815,3403.5,3403.1,2.93846]
[1721068713582,0.02892815,3403.5,3403.3,2.93831]
[1721068713989,0.3,3403.9,3403.3,2.93831]
[1721068713990,0.55,3403.8,3403.3,2.93831]
[1721068714194,0.02788384,3403.4,3403.3,2.93831]
[1721068714352,0.60767913,3403.8,3403.3,2.93831]
[1721068714555,0.02788384,3403.4,3403.3,2.93831]
[1721068714748,0.4609332,3404.3,3403.7,2.93795]
[1721068715366,2.93737,3404.4,3403.7,2.93795]
[1721068715677,6.10458579,3404.5,3403.7,2.93795]
[1721068715878,3.16723579,3404.5,3403.7,2.93795]
[1721068716094,3.77767137,3404.5,3403.7,2.93795]
[1721068716299,3.77767137,3404.5,3403.9,2.93775]
[1721068716300,3.16723579,3404.5,3403.9,2.93775]
[1721068716592,0.02655391,3404.4,3403.9,2.93775]
[1721068717093,0.63423304,3404.4,3403.7,5.87586]
[1721068717294,0.63423304,3404.4,3403.7,2.93791]
[1721068717479,0.96759588,3404.3,3403.6,2.93805]
[1721068717691,0.08416318,3404.2,3403.4,2.93817]
[1721068717983,0.55,3404.1,3403.4,2.93817]
[1721068718297,0.0263841,3404.0,3403.4,2.93816]
[1721068718599,0.0263841,3404.0,3403.6,2.93804]
[1721068718980,0.0263841,3404.0,3403.7,2.93796]
[1721068719159,0.0263841,3404.0,3403.8,2.93788]
[1721068719505,3.16723579,3404.5,3403.8,2.93788]
[1721068719671,1.18707681,3404.4,3403.8,2.93788]
[1721068720105,0.05767913,3404.3,3403.6,2.93799]
[1721068720287,0.0265293,3404.2,3403.4,2.9382]
[1721068720460,0.63420843,3404.2,3403.4,2.93818]
[1721068721400,0.55,3404.2,3403.7,2.93791]
[1721068721559,1.0232208,3404.2,3403.5,2.93811]
[1721068721977,1.0232208,3404.2,3403.5,5.87618]
[1721068722302,1.0232208,3404.2,3403.6,2.93806]
[1721068722604,1.0232208,3404.2,3403.3,2.93828]
[1721068722902,3.9607808,3404.2,3403.4,2.93823]
[1721068723146,3.9607808,3404.2,3402.1,2.4214]
[1721068723147,2.3202,3404.0,3402.1,2.4214]
[1721068723415,2.9385,3403.1,3402.1,2.93933]
[1721068723706,0.05767913,3403.0,3402.3,2.93917]
[1721068723913,0.60767913,3403.0,3402.3,2.93917]
[1721068724071,0.60767913,3403.0,3402.4,2.93909]
[1721068724260,0.60767913,3403.0,3401.2,2.9401]
[1721068724261,2.93872,3402.9,3401.9,2.9395]
[1721068724462,2.93901,3402.5,3401.6,2.93972]
[1721068724663,0.05767913,3402.4,3401.6,2.93972]
[1721068724873,0.55,3402.3,3401.6,2.93972]
[1721068725074,0.05767913,3402.2,3401.6,2.93972]
[1721068725796,0.60767913,3402.3,3401.8,2.93959]
[1721068726216,2.93892,3402.7,3401.6,2.93975]
[1721068726217,0.05767913,3402.7,3401.6,2.93975]
[1721068726375,0.55,3402.6,3402.2,2.93927]
[1721068726775,0.05767913,3402.9,3402.3,2.93914]
[1721068727097,0.55,3402.8,3402.3,2.93914]
[1721068727987,0.05767913,3402.7,3402.1,2.9393]
[1721068728175,0.55,3402.6,3402.1,2.9393]
[1721068728564,0.65462691,3402.8,3402.1,2.9393]
[1721068728767,0.55,3402.7,3402.3,2.93913]
[1721068729090,0.55,3402.9,3402.3,2.93913]
[1721068729598,0.55,3402.9,3402.4,2.93907]
[1721068730004,0.55,3402.9,3401.7,2.93966]
[1721068730005,0.05767913,3402.9,3402.2,2.93921]
[1721068730194,0.55,3402.8,3402.2,2.93921]
[1721068730511,0.15836406,3402.7,3402.2,2.93921]
[1721068731431,0.15836406,3402.7,3402.3,2.93918]
[1721068731732,0.15836406,3402.7,3402.2,2.93921]
[1721068732027,0.21604319,3402.7,3402.0,5.87881]
[1721068732227,0.21604319,3402.7,3402.0,2.93938]
[1721068732228,0.15836406,3402.6,3402.0,2.93938]
[1721068732926,0.704356,3402.6,3402.0,2.93938]
[1721068733223,0.21604319,3402.5,3402.0,2.9394]
[1721068733427,0.15836406,3402.4,3402.0,2.9394]
[1721068734010,0.21555937,3402.3,3401.6,2.93978]
[1721068734323,0.05767913,3402.3,3401.8,2.9396]
[1721068734828,0.05767913,3402.5,3401.9,2.9395]
[1721068735031,0.15753664,3402.4,3402.1,2.93935]
[1721068735188,0.15753664,3402.3,3402.1,2.93935]
[1721068735389,0.61378327,3402.7,3402.1,2.93935]
[1721068735624,0.15786466,3402.6,3402.1,2.93935]
[1721068735804,0.77164793,3402.6,3402.1,2.93935]
[1721068736003,0.15786466,3402.5,3402.1,2.93935]
[1721068736207,0.15786466,3402.5,3401.4,2.93989]
[1721068736208,0.15786466,3402.5,3401.9,2.93946]
[1721068736389,0.15786466,3402.5,3401.4,2.93989]
[1721068736390,0.15786466,3402.5,3402.0,2.93937]
[1721068736725,0.15786466,3402.5,3401.4,2.93989]
[1721068736726,0.15786466,3402.5,3402.1,2.93934]
[1721068736958,0.15786466,3402.5,3401.9,2.93946]
[1721068737490,0.53233261,3402.5,3401.6,2.93972]
[1721068737690,0.15786466,3402.4,3401.6,2.93972]
[1721068737942,0.05767913,3402.3,3401.6,2.93972]
[1721068738090,0.05767913,3402.3,3401.5,2.93986]
[1721068738091,0.15786466,3402.2,3401.5,2.93986]
[1721068738432,0.21554379,3402.2,3401.6,2.93978]
[1721068738592,0.15786466,3402.1,3401.6,2.93978]
[1721068738788,5.3543,3401.9,3400.8,2.94041]
[1721068739032,0.61378327,3401.7,3400.8,2.94041]
[1721068739215,0.21554379,3401.8,3401.0,2.94025]
[1721068739216,0.82932706,3401.6,3401.0,2.94025]
[1721068739425,0.15786466,3401.5,3400.8,2.94041]
[1721068739622,0.05767913,3401.4,3400.8,2.94041]
[1721068739943,0.14903267,3401.3,3400.8,2.94041]
[1721068740097,0.14903267,3401.2,3400.6,2.94059]
[1721068740298,0.14903267,3401.2,3400.3,2.94091]
[1721068740540,0.14903267,3401.2,3400.9,2.94033]
[1721068740835,0.45318573,3401.4,3400.9,2.94033]
[1721068741045,0.14816977,3401.3,3400.0,2.4201]
[1721068741332,0.14816977,3401.3,3401.0,2.9403]
[1721068741505,0.61483206,3401.6,3400.4,2.94077]
[1721068741707,0.61483206,3401.7,3401.4,2.93988]
[1721068741906,0.15012044,3401.6,3401.4,2.93988]
[1721068742233,0.15025339,3401.5,3401.4,2.93988]
[1721068742824,0.150245,3401.5,3401.2,2.94008]
[1721068743018,0.61483206,3401.7,3401.3,2.94003]
[1721068743192,0.15022719,3401.6,3401.3,2.94003]
[1721068743401,0.61483206,3401.8,3401.3,2.94003]
[1721068743599,0.15022018,3401.7,3401.3,2.94003]
[1721068744098,0.15022018,3401.7,3401.5,2.93987]
[1721068744319,0.61483206,3401.8,3401.5,2.93987]
[1721068744523,0.15075625,3401.7,3401.2,2.9401]
[1721068744730,0.82326744,3401.7,3401.0,2.94026]
[1721068744916,0.82326744,3401.7,3400.8,2.94047]
[1721068744917,1.31558831,3401.6,3400.8,2.94047]
[1721068745114,0.61483206,3401.4,3400.8,2.94047]
[1721068745330,2.89213206,3401.5,3400.8,2.94047]
[1721068745647,2.2773,3401.5,3401.0,2.94024]
[1721068745815,2.2773,3401.5,3400.8,2.94041]
[1721068745816,0.72077582,3401.5,3400.8,2.94041]
[1721068746151,0.14752207,3401.4,3400.9,2.94034]
[1721068746347,0.61483206,3401.7,3401.1,2.94015]
[1721068746934,0.61483206,3401.7,3401.1,2.94017]
[1721068747314,1.06854007,3401.8,3401.1,2.94017]
[1721068747838,1.06854007,3401.8,3401.2,2.94011]
[1721068748038,0.45370801,3401.8,3401.2,2.94011]
[1721068749009,0.62852801,3401.7,3401.2,2.94011]
[1721068749341,0.62852801,3401.7,3401.1,2.94015]
[1721068749709,0.62852801,3401.7,3401.2,2.94012]
[1721068749904,0.61483206,3402.1,3401.5,2.93982]
[1721068750105,1.17041314,3402.2,3401.5,2.93982]
[1721068750347,0.55,3402.1,3401.5,2.93982]
[1721068750821,0.55558108,3402.2,3401.6,2.93977]
[1721068751017,0.55558108,3402.2,3401.7,2.93963]
[1721068752207,0.61483206,3402.4,3400.7,10.34052]
[1721068752208,0.61483206,3402.4,3402.0,2.93936]
[1721068752506,1.22966412,3402.7,3402.1,2.93935]
[1721068752507,0.61483206,3402.7,3402.1,2.93935]
[1721068752711,0.05767913,3402.7,3402.1,2.93935]